bitfinex-derivatives/quotes_BTCF0:USTF0_20230401
["timestamp","ask_amount","ask_price","bid_price","bid_amount"]
[1680345805945,0.4203,28445.0,28443.0,0.0772]
[1680345806146,0.1196,28445.0,28443.0,0.0772]
[1680345806346,0.4203,28445.0,28443.0,0.0772]
[1680345807048,0.4203,28445.0,28443.0,0.0702]
[1680345809551,0.3703,28445.0,28443.0,0.0702]
[1680345815351,0.3703,28445.0,28444.0,0.0702]
[1680345815552,0.3007,28445.0,28444.0,0.0702]
[1680345815751,0.3007,28445.0,28444.0,0.06998109]
[1680345817252,0.3007,28445.0,28444.0,0.07698109]
[1680345822156,0.1203,28447.0,28444.0,0.07698109]
[1680345822457,0.1203,28447.0,28445.0,0.0698]
[1680345823055,0.1253,28447.0,28445.0,0.0698]
[1680345823559,0.05,28446.0,28445.0,0.0698]
[1680345826965,0.05,28446.0,28445.0,0.0702]
[1680345827766,0.3507,28447.0,28445.0,0.0702]
[1680345827964,0.3507,28447.0,28446.0,0.0697]
[1680345828867,0.3557,28447.0,28446.0,0.0697]
[1680345830568,0.3057,28447.0,28446.0,0.0697]
[1680345834869,0.005,28447.0,28446.0,0.0697]
[1680345846176,0.005,28447.0,28446.0,0.14]
[1680345846367,0.005,28447.0,28446.0,0.1404]
[1680345847173,0.005,28447.0,28446.0,0.1904]
[1680345847580,0.005,28447.0,28446.0,0.1404]
[1680345849979,0.005,28447.0,28446.0,0.4411]
[1680345851185,0.05,28449.0,28446.0,0.4481]
[1680345851478,0.05,28449.0,28448.0,0.1405]
[1680345851885,0.05,28450.0,28448.0,0.1405]
[1680345852073,0.3507,28450.0,28449.0,0.0703]
[1680345853282,0.3007,28450.0,28449.0,0.0703]
[1680345853679,0.3057,28450.0,28449.0,0.0703]
[1680345853874,0.3007,28450.0,28449.0,0.0703]
[1680345854078,0.3557,28450.0,28449.0,0.0713]
[1680345856783,0.055,28450.0,28449.0,0.0713]
[1680345857084,0.3557,28450.0,28449.0,0.0713]
[1680345857582,0.3057,28450.0,28449.0,0.0713]
[1680345860386,0.005,28450.0,28449.0,0.0713]
[1680345860588,0.3057,28450.0,28449.0,0.0713]
[1680345860987,0.3057,28450.0,28449.0,0.07121977]
[1680345865089,0.3057,28450.0,28449.0,0.07021977]
[1680345866885,0.3057,28450.0,28446.0,0.3011]
[1680345867090,0.3754,28450.0,28449.0,0.0703]
[1680345871595,0.0747,28450.0,28449.0,0.0703]
[1680345886996,0.005,28450.0,28449.0,0.0702]
[1680345894815,0.00493056,28450.0,28449.0,0.0702]
[1680345899019,0.05276036,28451.0,28449.0,0.0702]
[1680345899220,0.005,28450.0,28448.0,0.3706]
[1680345899412,0.05,28452.0,28449.0,0.0703]
[1680345899720,0.05,28452.0,28451.0,0.0703]
[1680345900420,0.54753798,28453.0,28451.0,0.0703]
[1680345902019,0.600397,28453.0,28451.0,0.0703]
[1680345902223,0.01,28452.0,28451.0,0.0713]
[1680345903327,0.610397,28453.0,28451.0,0.0723]
[1680345903716,0.01,28452.0,28451.0,0.0713]
[1680345904629,0.01,28452.0,28451.0,0.1415]
[1680345905222,0.06285902,28453.0,28451.0,0.1425]
[1680345905421,0.06285902,28453.0,28452.0,0.0703]
[1680345905422,0.01,28453.0,28452.0,0.0703]
[1680345906022,0.05,28454.0,28452.0,0.0703]
[1680345906221,0.05,28454.0,28453.0,0.0703]
[1680345908327,0.06,28454.0,28453.0,0.0703]
[1680345908528,0.05,28454.0,28453.0,0.0703]
[1680345908724,0.06,28454.0,28453.0,0.0713]
[1680345910133,0.01,28454.0,28453.0,0.4422]
[1680345910725,0.005,28454.0,28453.0,0.4412]
[1680345913630,0.005,28454.0,28453.0,0.371]
[1680345913931,0.376,28454.0,28452.0,0.0702]
[1680345914124,0.371,28454.0,28453.0,0.001]
[1680345914529,0.372,28454.0,28453.0,0.008]
[1680345914928,0.372,28454.0,28452.0,0.0702]
[1680345914929,0.371,28454.0,28452.0,0.0702]
[1680345915130,0.376,28454.0,28452.0,0.0702]
[1680345915329,0.05,28453.0,28452.0,0.0702]
[1680345916533,0.05,28453.0,28452.0,0.0712]
[1680345916929,0.051,28453.0,28452.0,0.0782]
[1680345917833,0.3517,28453.0,28452.0,0.0782]
[1680345918933,0.051,28453.0,28452.0,0.0782]
[1680345919128,0.3517,28453.0,28452.0,0.0782]
[1680345920129,0.051,28453.0,28452.0,0.0782]
[1680345921125,0.3517,28453.0,28452.0,0.0782]
[1680345927041,0.422,28453.0,28452.0,0.008]
[1680345928543,0.1213,28453.0,28452.0,0.008]
[1680345928747,0.422,28453.0,28452.0,0.008]
[1680345929836,0.372,28453.0,28452.0,0.008]
[1680345931341,0.0713,28453.0,28452.0,0.008]
[1680345942646,0.0713,28453.0,28452.0,0.3087]
[1680345942838,0.0713,28453.0,28452.0,0.30859437]
[1680345944252,0.0713,28453.0,28452.0,0.00789437]
[1680345944448,0.0713,28453.0,28452.0,0.30859437]
[1680345946957,0.001,28453.0,28452.0,0.37839437]
[1680345951146,0.001,28453.0,28452.0,0.07769437]
[1680345953550,0.372,28453.0,28452.0,1e-08]
[1680345953753,0.5825,28453.0,28446.0,0.3011]
[1680345953950,0.0703,28447.0,28446.0,0.38488283]
[1680345954145,0.0703,28447.0,28446.0,0.3007]
[1680345954350,0.0703,28447.0,28446.0,0.38488283]
[1680345954546,0.0703,28447.0,28446.0,0.3007]
[1680345955854,0.0723,28447.0,28446.0,0.3197]
[1680345956751,0.0723,28447.0,28446.0,0.019]
[1680345956951,0.002,28447.0,28446.0,0.0893]
[1680345958357,0.1197,28448.0,28446.0,0.0703]
[1680345958657,0.001,28447.0,28446.0,0.0843]
[1680345960059,0.1207,28448.0,28446.0,0.0773]
[1680345960458,0.001,28447.0,28446.0,0.0843]
[1680345961159,0.1197,28448.0,28446.0,0.0703]
[1680345962661,0.001,28447.0,28446.0,0.0843]
[1680345962955,0.1197,28448.0,28446.0,0.0843]
[1680345962956,0.1197,28448.0,28446.0,0.0703]
[1680345963158,0.1207,28448.0,28446.0,0.0773]
[1680345963555,0.001,28447.0,28446.0,0.0843]
[1680345963951,0.1207,28448.0,28446.0,0.0773]
[1680345964556,0.001,28447.0,28446.0,0.0843]
[1680345965760,0.1207,28448.0,28446.0,0.0773]
[1680345965960,0.001,28447.0,28446.0,0.0843]
[1680345972165,0.001,28447.0,28446.0,0.0838]
[1680345977060,0.001,28447.0,28446.0,0.0843]
[1680345985173,0.3017,28447.0,28446.0,0.0843]
[1680345986472,0.001,28447.0,28446.0,0.0843]
[1680345987068,0.0708,28447.0,28446.0,0.0843]
[1680345989863,0.07066395,28447.0,28446.0,0.0843]
[1680345996981,0.07116395,28447.0,28446.0,0.0843]
[1680345997181,0.12116395,28447.0,28446.0,0.0843]
[1680345997385,0.07116395,28447.0,28446.0,0.0843]
[1680346006989,0.00086395,28447.0,28446.0,0.0841]
[1680346008289,0.00086395,28447.0,28446.0,0.0843]
[1680346036109,0.05086395,28447.0,28446.0,0.08414173]
[1680346037804,0.00086395,28447.0,28446.0,0.08414173]
[1680346057013,0.07116395,28447.0,28446.0,0.08414173]
[1680346060830,0.07116395,28447.0,28442.0,0.10581424]
[1680346061124,0.1402,28443.0,28439.0,0.17561424]
[1680346061312,0.0697,28440.0,28439.0,0.0702]
[1680346062226,0.0697,28440.0,28439.0,0.0752]
[1680346062422,0.0703,28440.0,28439.0,0.0753]
[1680346062616,0.1203,28440.0,28439.0,0.0753]
[1680346062814,0.1233,28440.0,28439.0,0.0753]
[1680346065820,0.0733,28440.0,28439.0,0.0753]
[1680346067022,0.0733,28440.0,28439.0,0.005]
[1680346074325,0.05,28439.0,28434.0,0.0697]
[1680346074527,0.0703,28438.0,28436.0,0.0702]
[1680346074731,0.05,28437.0,28436.0,0.0702]
[1680346075327,0.0703,28438.0,28436.0,0.0702]
[1680346076541,0.002,28437.0,28436.0,0.0712]
[1680346076723,0.052,28437.0,28436.0,0.0712]
[1680346076928,0.0713,28438.0,28436.0,0.0712]
[1680346077330,0.0703,28441.0,28437.0,0.1401]
[1680346077530,0.0703,28441.0,28440.0,0.0702]
[1680346080436,0.0793,28441.0,28440.0,0.0702]
[1680346080738,0.0713,28441.0,28440.0,0.0712]
[1680346087042,0.0713,28441.0,28440.0,0.0713]
[1680346090437,0.0713,28441.0,28440.0,0.372]
[1680346092443,0.0713,28441.0,28440.0,0.3017]
[1680346092648,0.0713,28441.0,28440.0,0.3719]
[1680346096953,0.001,28441.0,28440.0,0.372]
[1680346103954,0.001,28441.0,28440.0,0.0713]
[1680346106959,0.0706,28441.0,28440.0,0.0711]
[1680346116966,0.0713,28441.0,28440.0,0.001]
[1680346124058,0.0713,28441.0,28440.0,0.00078947]
[1680346137781,0.05,28440.0,28435.0,0.0004]
[1680346138083,0.0703,28436.0,28434.0,0.47591424]
[1680346139375,0.0733,28436.0,28434.0,0.47591424]
[1680346140076,0.0733,28436.0,28435.0,0.3007]
[1680346141372,0.0703,28436.0,28435.0,0.3007]
[1680346141578,0.0733,28436.0,28435.0,0.3007]
[1680346144479,0.0733,28436.0,28434.0,0.3705]
[1680346151986,0.0723,28436.0,28434.0,0.3705]
[1680346152584,0.0723,28436.0,28434.0,0.3007]
[1680346152892,0.0723,28436.0,28434.0,0.3709]
[1680346153290,0.0723,28436.0,28435.0,0.3007]
[1680346154383,0.0723,28436.0,28434.0,0.0702]
[1680346154983,0.0723,28436.0,28435.0,0.3007]
[1680346155989,0.1203,28438.0,28435.0,0.371]
[1680346156195,0.002,28436.0,28435.0,0.3007]
[1680346156392,0.002,28436.0,28435.0,0.371]
[1680346156888,0.002,28436.0,28435.0,0.0703]
[1680346157096,0.002,28436.0,28435.0,0.371]
[1680346165603,0.002,28436.0,28435.0,0.0703]
[1680346165807,0.002,28436.0,28435.0,0.371]
[1680346166197,0.002,28436.0,28435.0,0.0703]
[1680346166397,0.002,28436.0,28435.0,0.371]
[1680346171601,0.002,28436.0,28435.0,0.0703]
[1680346171804,0.002,28436.0,28435.0,0.371]
[1680346174207,0.001766,28436.0,28435.0,0.371]
[1680346176009,0.001766,28436.0,28435.0,0.0703]
[1680346177017,0.072066,28436.0,28434.0,0.3709]
[1680346177214,0.0698,28435.0,28434.0,0.3709]
[1680346177613,0.0698,28435.0,28434.0,0.0702]
[1680346177811,0.0698,28435.0,28434.0,0.3709]
[1680346178417,0.0728,28435.0,28434.0,0.3709]
[1680346182917,0.0733,28435.0,28434.0,0.371]
[1680346187016,0.003,28435.0,28434.0,0.3709]
[1680346189919,0.003,28435.0,28434.0,0.0702]
[1680346190319,0.003,28435.0,28434.0,0.3709]
[1680346190718,0.003,28435.0,28434.0,0.0702]
[1680346190917,0.003,28435.0,28434.0,0.3709]
[1680346196333,0.003,28435.0,28434.0,0.0702]
[1680346196630,0.003,28435.0,28434.0,0.6716]
[1680346199223,0.003,28435.0,28434.0,0.0702]
[1680346199933,0.003,28435.0,28434.0,0.6716]
[1680346204430,0.002,28435.0,28434.0,0.6716]
[1680346209634,0.002,28435.0,28434.0,0.8821]
[1680346209944,0.0696,28440.0,28435.0,0.05]
[1680346210136,0.0696,28440.0,28439.0,0.3007]
[1680346210336,0.0696,28440.0,28439.0,0.3507]
[1680346211131,0.0776,28440.0,28439.0,0.3507]
[1680346211531,0.0776,28440.0,28439.0,0.3007]
[1680346212439,0.0716,28440.0,28439.0,0.3007]
[1680346212943,0.0717,28440.0,28439.0,0.371]
[1680346216043,0.0717,28440.0,28439.0,0.0703]
[1680346216345,0.0717,28440.0,28439.0,0.371]
[1680346216938,0.002,28440.0,28439.0,0.371]
[1680346224360,0.002,28440.0,28439.0,0.0703]
[1680346224747,0.002,28440.0,28439.0,0.371]
[1680346227453,0.002,28440.0,28439.0,0.0703]
[1680346227654,0.002,28440.0,28439.0,0.371]
[1680346229262,0.002,28440.0,28439.0,0.0703]
[1680346229463,0.002,28440.0,28439.0,0.371]
[1680346229851,0.002,28440.0,28439.0,0.0703]
[1680346230055,0.002,28440.0,28439.0,0.371]
[1680346230871,0.002,28440.0,28439.0,0.0703]
[1680346231164,0.0723,28440.0,28439.0,0.3007]
[1680346232965,0.0723,28440.0,28438.0,0.3007]
[1680346233168,0.0698,28439.0,28438.0,0.3007]
[1680346234159,0.0708,28439.0,28438.0,0.3007]
[1680346237063,0.0708,28439.0,28438.0,0.371]
[1680346237064,0.001,28439.0,28438.0,0.371]
[1680346241572,0.001,28439.0,28438.0,0.0703]
[1680346241869,0.001,28439.0,28438.0,0.371]
[1680346243471,0.001,28439.0,28438.0,0.0703]
[1680346246671,0.001,28439.0,28438.0,0.371]
[1680346246973,0.0713,28439.0,28438.0,0.371]
[1680346249073,0.0713,28439.0,28438.0,0.0703]
[1680346249374,0.0713,28439.0,28438.0,0.371]
[1680346266983,0.001,28439.0,28438.0,0.3705]
[1680346267985,0.001,28439.0,28438.0,0.6712]
[1680346271383,0.0703,28444.0,28438.0,0.7415]
[1680346271594,0.0703,28448.0,28443.0,0.6715]
[1680346271792,0.0703,28448.0,28447.0,0.3007]
[1680346272392,0.0707,28448.0,28447.0,0.3007]
[1680346272586,0.0703,28448.0,28447.0,0.3007]
[1680346272986,0.0967,28448.0,28447.0,0.371]
[1680346276686,0.0847,28448.0,28447.0,0.371]
[1680346276889,0.0847,28448.0,28444.0,0.05]
[1680346277192,0.0853,28448.0,28446.0,0.3704]
[1680346277997,0.0723,28448.0,28446.0,0.3704]
[1680346278690,0.0703,28448.0,28446.0,0.3704]
[1680346278896,0.0723,28448.0,28446.0,0.3704]
[1680346279284,0.0723,28448.0,28446.0,0.0697]
[1680346279490,0.0723,28448.0,28447.0,0.3007]
[1680346283693,0.0723,28448.0,28446.0,0.0697]
[1680346283897,0.0723,28448.0,28447.0,0.3007]
[1680346284090,0.0723,28448.0,28446.0,0.1197]
[1680346284292,0.0723,28448.0,28447.0,0.3007]
[1680346284892,0.0723,28448.0,28447.0,0.3507]
[1680346285194,0.0723,28448.0,28447.0,0.3007]
[1680346285396,0.0723,28448.0,28446.0,0.1197]
[1680346285593,0.0723,28448.0,28447.0,0.3007]
[1680346289396,0.0723,28448.0,28446.0,0.0697]
[1680346289697,0.0723,28448.0,28447.0,0.3007]
[1680346292100,0.0723,28448.0,28446.0,0.1197]
[1680346292392,0.0723,28448.0,28447.0,0.3007]
[1680346293499,0.0703,28448.0,28447.0,0.3007]
[1680346293700,0.0723,28448.0,28447.0,0.3007]
[1680346294199,0.0723,28448.0,28446.0,0.0697]
[1680346294394,0.0723,28448.0,28447.0,0.3007]
[1680346302602,0.0723,28448.0,28446.0,0.0703]
[1680346302805,0.0698,28447.0,28446.0,0.0703]
[1680346303103,0.0698,28447.0,28446.0,0.371]
[1680346304200,0.0708,28447.0,28446.0,0.375]
[1680346306002,0.0708,28447.0,28446.0,0.0743]
[1680346306400,0.0708,28447.0,28446.0,0.375]
[1680346309604,0.0708,28447.0,28446.0,0.0743]
[1680346309806,0.0708,28447.0,28446.0,0.375]
[1680346311298,0.0708,28447.0,28446.0,0.0743]
[1680346311710,0.0708,28447.0,28446.0,0.375]
[1680346312402,0.0708,28447.0,28446.0,0.0743]
[1680346312608,0.0708,28447.0,28446.0,0.375]
[1680346312904,0.0708,28447.0,28446.0,0.0743]
[1680346313107,0.0708,28447.0,28446.0,0.375]
[1680346316212,0.0708,28447.0,28446.0,0.0743]
[1680346316813,0.0708,28447.0,28446.0,0.375]
[1680346320210,0.0708,28447.0,28446.0,0.425]
[1680346320415,0.0708,28447.0,28446.0,0.375]
[1680346321809,0.0708,28447.0,28446.0,0.0743]
[1680346322008,0.0708,28447.0,28446.0,0.6757]
[1680346322413,0.001,28447.0,28446.0,0.6756]
[1680346323517,0.0703,28450.0,28447.0,0.05]
[1680346323718,0.0703,28450.0,28449.0,0.3709]
[1680346324618,0.015,28450.0,28449.0,0.3708]
[1680346326215,0.015,28450.0,28449.0,0.6715]
[1680346328517,0.015,28450.0,28449.0,1.0233]
[1680346328723,0.0004,28453.0,28449.0,1.0934]
[1680346328917,0.0703,28456.0,28452.0,0.3705]
[1680346329112,0.0703,28456.0,28455.0,0.3007]
[1680346330522,0.0883,28456.0,28455.0,0.3027]
[1680346331616,0.0883,28456.0,28455.0,0.002]
[1680346333120,0.0883,28456.0,28455.0,0.0722]
[1680346333121,0.018,28456.0,28455.0,0.0722]
[1680346333519,0.016,28456.0,28455.0,0.0722]
[1680346333718,0.066,28456.0,28455.0,0.0722]
[1680346333921,0.05,28456.0,28455.0,0.0702]
[1680346334121,0.016,28456.0,28455.0,0.0722]
[1680346334420,0.066,28456.0,28455.0,0.0722]
[1680346334620,0.016,28456.0,28455.0,0.0722]
[1680346335424,0.007,28456.0,28455.0,0.0712]
[1680346343631,0.057,28456.0,28455.0,0.0712]
[1680346343927,0.007,28456.0,28455.0,0.0712]
[1680346346931,0.007,28456.0,28455.0,0.0713]
[1680346351032,0.007,28456.0,28455.0,0.372]
[1680346352028,0.007,28456.0,28455.0,0.0713]
[1680346352336,0.007,28456.0,28455.0,0.372]
[1680346355836,0.007,28456.0,28455.0,0.4923]
[1680346356029,0.12321613,28460.0,28456.0,0.05]
[1680346356227,0.12321613,28460.0,28459.0,0.0698]
[1680346357930,0.12621613,28460.0,28459.0,0.0718]
[1680346361640,0.073,28460.0,28459.0,0.0718]
[1680346363434,0.073,28460.0,28459.0,0.3725]
[1680346368444,0.073,28460.0,28459.0,0.0718]
[1680346368638,0.073,28460.0,28459.0,0.3725]
[1680346374054,0.003,28460.0,28459.0,0.4426]
[1680346376044,0.01,28460.0,28459.0,0.4426]
[1680346376455,0.05,28462.0,28459.0,0.4406]
[1680346376753,0.01,28460.0,28459.0,0.3719]
[1680346376942,0.01,28460.0,28459.0,0.4415]
[1680346378955,0.01,28462.0,28459.0,0.4425]
[1680346379151,0.01,28462.0,28461.0,0.0702]
[1680346379560,0.12260898,28464.0,28461.0,0.0702]
[1680346379753,0.12260898,28464.0,28463.0,0.0703]
[1680346382050,0.13260898,28464.0,28463.0,0.0723]
[1680346386958,0.06230898,28464.0,28463.0,0.0721]
[1680346389760,0.01,28464.0,28463.0,0.0721]
[1680346391152,0.01,28464.0,28463.0,0.1423]
[1680346391860,0.01,28464.0,28463.0,0.1923]
[1680346393756,0.01,28464.0,28463.0,0.1423]
[1680346394157,0.01,28464.0,28463.0,0.1923]
[1680346394862,0.01,28464.0,28463.0,0.1423]
[1680346395563,0.3007,28470.0,28463.0,0.2826]
[1680346395860,0.05,28470.0,28469.0,0.0702]
[1680346396460,0.051,28470.0,28469.0,0.0702]
[1680346398562,0.051,28470.0,28469.0,0.0722]
[1680346399363,0.001,28470.0,28469.0,0.0722]
[1680346402369,0.05484951,28470.0,28469.0,0.0722]
[1680346402667,0.001,28470.0,28469.0,0.0722]
[1680346406473,0.05422662,28470.0,28469.0,0.0722]
[1680346406769,0.001,28470.0,28469.0,0.0722]
[1680346406969,0.0713,28470.0,28469.0,0.0723]
[1680346410176,0.12379931,28470.0,28469.0,0.0723]
[1680346415280,0.0713,28470.0,28469.0,0.0723]
[1680346416981,0.001,28470.0,28469.0,0.0717]
[1680346421177,0.001,28470.0,28469.0,0.45227933]
[1680346425280,0.001,28470.0,28469.0,0.75297933]
[1680346425475,0.001,28470.0,28469.0,0.82327933]
[1680346427179,0.001,28470.0,28469.0,0.52257933]
[1680346427490,0.54753798,28475.0,28470.0,0.05]
[1680346427692,0.54753798,28475.0,28473.0,0.0703]
[1680346427990,0.49753798,28475.0,28473.0,0.0703]
[1680346428682,0.49753798,28475.0,28473.0,0.0723]
[1680346428883,0.05,28474.0,28473.0,0.0723]
[1680346434581,0.05,28474.0,28473.0,0.002]
[1680346434781,0.1203,28474.0,28473.0,0.002]
[1680346436285,0.24683798,28474.0,28473.0,0.002]
[1680346436990,0.31713798,28474.0,28473.0,0.002]
[1680346438889,0.1906,28474.0,28473.0,0.002]
[1680346439290,0.4913,28474.0,28473.0,0.002]
[1680346440288,0.05,28473.0,28469.0,0.0702]
[1680346440499,0.0698,28470.0,28469.0,0.0702]
[1680346441000,0.1198,28470.0,28469.0,0.0702]
[1680346442599,0.0698,28470.0,28469.0,0.0702]
[1680346443700,0.0708,28470.0,28469.0,0.0722]
[1680346447110,0.0713,28470.0,28469.0,0.002]
[1680346450314,0.1213,28470.0,28469.0,0.002]
[1680346450617,0.05,28469.0,28465.0,0.0703]
[1680346450807,0.05,28466.0,28465.0,0.0703]
[1680346451613,0.05,28466.0,28465.0,0.0723]
[1680346452120,0.0703,28467.0,28465.0,0.0723]
[1680346452710,0.0703,28467.0,28465.0,0.0703]
[1680346452910,0.003,28466.0,28465.0,0.0723]
[1680346453321,0.0733,28467.0,28465.0,0.0723]
[1680346453814,0.0703,28467.0,28465.0,0.0703]
[1680346454114,0.003,28466.0,28465.0,0.0716]
[1680346454310,0.003,28466.0,28465.0,0.1414]
[1680346454822,0.003,28467.0,28465.0,0.1414]
[1680346455014,0.003,28467.0,28466.0,0.0703]
[1680346456218,0.1203,28469.0,28466.0,0.0703]
[1680346456415,0.1203,28469.0,28468.0,0.0702]
[1680346456719,0.0703,28469.0,28468.0,0.0702]
[1680346456920,0.0703,28469.0,28468.0,0.0703]
[1680346457324,0.0733,28469.0,28468.0,0.0723]
[1680346459918,0.1233,28469.0,28468.0,0.0723]
[1680346461824,0.0733,28469.0,28468.0,0.0723]
[1680346465229,0.0733,28469.0,28468.0,0.0718]
[1680346465925,0.1233,28469.0,28468.0,0.0718]
[1680346466127,0.193,28469.0,28468.0,0.002]
[1680346471124,0.05,28468.0,28464.0,0.3007]
[1680346471423,0.0698,28465.0,28464.0,0.3007]
[1680346471626,0.1198,28465.0,28464.0,0.3007]
[1680346472329,0.1468,28465.0,28464.0,0.3017]
[1680346472726,0.1198,28465.0,28464.0,0.3007]
[1680346473027,0.1468,28465.0,28464.0,0.3017]
[1680346475133,0.05,28464.0,28462.0,0.0697]
[1680346475327,0.0703,28463.0,28462.0,0.0697]
[1680346475533,0.1203,28463.0,28462.0,0.0697]
[1680346476733,0.1473,28463.0,28462.0,0.0697]
[1680346477034,0.1473,28463.0,28460.0,0.0702]
[1680346477235,0.0697,28462.0,28460.0,0.0702]
[1680346477436,0.1197,28462.0,28460.0,0.0702]
[1680346478033,0.1473,28462.0,28457.0,0.371]
[1680346478239,0.0703,28459.0,28457.0,0.371]
[1680346478438,0.05,28458.0,28457.0,0.371]
[1680346479532,0.072,28458.0,28457.0,0.371]
[1680346483543,0.1423,28458.0,28457.0,0.3705]
[1680346485243,0.6527,28458.0,28452.0,0.6294]
[1680346485447,0.0696,28453.0,28449.0,0.0702]
[1680346485741,0.0698,28451.0,28449.0,0.0702]
[1680346486443,0.05,28450.0,28449.0,0.0702]
[1680346486947,0.05,28450.0,28449.0,0.0703]
[1680346487845,0.053,28450.0,28449.0,0.0703]
[1680346488746,0.051,28450.0,28449.0,0.0703]
[1680346494348,0.1203,28450.0,28447.0,0.3007]
[1680346494547,0.0698,28448.0,28447.0,0.3007]
[1680346495050,0.0703,28448.0,28444.0,0.3705]
[1680346495253,0.0703,28445.0,28444.0,0.3705]
[1680346497051,0.0703,28445.0,28444.0,0.371]
[1680346497646,0.0713,28445.0,28444.0,0.371]
[1680346504461,0.001,28445.0,28444.0,0.3704]
[1680346507965,0.001,28445.0,28444.0,0.74511311]
[1680346509971,0.001,28445.0,28444.0,0.44441311]
[1680346510272,0.001,28445.0,28444.0,1.04581311]
[1680346511269,0.0703,28449.0,28444.0,1.04581311]
[1680346511270,0.0703,28452.0,28444.0,1.25561311]
[1680346511568,0.0703,28452.0,28451.0,0.3705]
[1680346512373,0.0973,28452.0,28451.0,0.3705]
[1680346513570,0.027,28452.0,28451.0,0.3709]
[1680346516973,0.027,28452.0,28451.0,0.371]
[1680346519669,0.027,28452.0,28451.0,0.4412]
[1680346519972,0.027,28452.0,28451.0,0.5818]
[1680346520576,0.0703,28457.0,28452.0,0.05]
[1680346520776,0.0703,28457.0,28456.0,0.371]
[1680346521878,0.011,28457.0,28456.0,0.6737]
[1680346522076,0.0703,28464.0,28457.0,0.05]
[1680346522273,0.0703,28464.0,28463.0,0.0703]
[1680346524077,0.0703,28464.0,28463.0,0.0723]
[1680346526986,0.0703,28464.0,28463.0,0.002]
[1680346532786,0.1406,28464.0,28463.0,0.002]
[1680346534498,0.4413,28464.0,28463.0,0.002]
[1680346536990,0.371,28464.0,28463.0,0.002]
[1680346541198,0.0703,28464.0,28463.0,0.002]
[1680346555403,0.0697,28465.0,28463.0,0.0723]
[1680346555608,0.0697,28465.0,28464.0,0.0701]
[1680346556510,0.0703,28468.0,28464.0,0.371]
[1680346556705,0.0703,28468.0,28467.0,0.0701]
[1680346556912,0.0703,28468.0,28465.0,0.1203]
[1680346557105,0.0703,28467.0,28465.0,0.1203]
[1680346557305,0.0703,28467.0,28465.0,0.0703]
[1680346557809,0.0703,28467.0,28465.0,0.0723]
[1680346566923,0.05,28466.0,28465.0,0.0723]
[1680346568117,0.0703,28467.0,28465.0,0.0723]
[1680346572725,0.55105483,28469.0,28466.0,0.0703]
[1680346573029,0.0703,28469.0,28468.0,0.0703]
[1680346574925,0.0703,28469.0,28468.0,0.0723]
[1680346576625,0.0703,28469.0,28468.0,0.07215201]
[1680346577032,0.0707,28470.0,28468.0,0.0721]
[1680346577923,0.0707,28470.0,28468.0,0.0701]
[1680346578228,0.0707,28470.0,28468.0,0.0721]
[1680346582730,0.1406,28469.0,28468.0,0.002]
[1680346583330,0.1906,28469.0,28468.0,0.002]
[1680346583832,0.05,28468.0,28465.0,0.0702]
[1680346584031,0.0703,28466.0,28465.0,0.0702]
[1680346584234,0.1203,28466.0,28465.0,0.0702]
[1680346585029,0.1213,28466.0,28465.0,0.0722]
[1680346586123,0.0713,28466.0,28465.0,0.0722]
[1680346586931,0.0713,28466.0,28465.0,0.002]
[1680346603144,0.0706,28466.0,28465.0,0.0722]
[1680346613750,0.07038893,28466.0,28465.0,0.0722]
[1680346613950,0.07038893,28466.0,28465.0,0.3729]
[1680346615848,0.07038893,28466.0,28465.0,0.0722]
[1680346616955,0.00078893,28466.0,28465.0,0.0722]
[1680346617151,0.00078893,28466.0,28465.0,0.3729]
[1680346617550,0.00078893,28466.0,28465.0,0.4229]
[1680346618657,0.00078893,28466.0,28465.0,0.3729]
[1680346619156,0.00078893,28466.0,28465.0,0.6736]
[1680346621560,0.00078893,28466.0,28465.0,0.3729]
[1680346622062,0.07058893,28466.0,28465.0,0.3027]
[1680346625550,0.07058893,28466.0,28465.0,0.002]
[1680346625759,0.07058893,28466.0,28465.0,0.3027]
[1680346626958,0.00078893,28466.0,28465.0,0.3729]
[1680346628862,0.00078893,28466.0,28465.0,0.4425]
[1680346634568,0.00078893,28466.0,28465.0,0.1418]
[1680346634768,0.00078893,28466.0,28465.0,0.4425]
[1680346636969,0.00078893,28466.0,28465.0,0.3729]
[1680346637373,0.00078893,28466.0,28465.0,0.0722]
[1680346644566,0.44208893,28466.0,28465.0,0.002]
[1680346646276,0.14138893,28466.0,28465.0,0.002]
[1680346646476,0.44208893,28466.0,28465.0,0.002]
[1680346648477,0.05,28465.0,28458.0,0.0703]
[1680346648683,0.0703,28460.0,28458.0,0.0703]
[1680346648880,0.05,28459.0,28458.0,0.0703]
[1680346650081,0.0713,28460.0,28458.0,0.0783]
[1680346650478,0.052,28459.0,28458.0,0.0783]
[1680346650875,0.0713,28460.0,28458.0,0.0783]
[1680346652387,0.002,28459.0,28458.0,0.0783]
[1680346652782,0.0703,28460.0,28458.0,0.0703]